[Event "Late-Titled-Tuesday-Blitz-February-06-2024"]
[Site "Chess.com"]
[Date "2024.02.06"]
[Round "5"]
[White "Jospem"]
[Black "Ticondriul"]
[Result "1/2-1/2"]
[WhiteElo "3035"]
[BlackElo "2730"]
[TimeControl "180+1"]
[EndTime "14:58:56 PST"]
[Termination "Game drawn by 50-move rule"]

1. e4 {[%clk 0:03:00.9]} 1... Nc6 {[%clk 0:02:59.8]} 2. Nf3 {[%clk 0:03:01.2]}
2... d5 {[%clk 0:03:00]} 3. exd5 {[%clk 0:03:01.4]} 3... Qxd5 {[%clk 0:03:00.5]}
4. Nc3 {[%clk 0:03:02.1]} 4... Qh5 {[%clk 0:03:00.7]} 5. Bb5 {[%clk 0:03:02.3]}
5... Bg4 {[%clk 0:03:00.2]} 6. Bxc6+ {[%clk 0:02:57.2]} 6... bxc6 {[%clk
0:03:00.4]} 7. d4 {[%clk 0:02:55.6]} 7... Nf6 {[%clk 0:03:00.2]} 8. Qe2 {[%clk
0:02:54.2]} 8... e6 {[%clk 0:02:59.8]} 9. Bd2 {[%clk 0:02:36.5]} 9... Rb8 {[%clk
0:02:57.9]} 10. b3 {[%clk 0:02:32.2]} 10... Bxf3 {[%clk 0:02:56.4]} 11. gxf3
{[%clk 0:02:30.8]} 11... Bb4 {[%clk 0:02:42]} 12. Rg1 {[%clk 0:02:17.1]} 12...
Qa5 {[%clk 0:02:27.7]} 13. Ne4 {[%clk 0:02:13.1]} 13... Bxd2+ {[%clk 0:02:16.4]}
14. Qxd2 {[%clk 0:02:14]} 14... Qxd2+ {[%clk 0:02:15.9]} 15. Kxd2 {[%clk
0:02:14.1]} 15... Nh5 {[%clk 0:02:12.8]} 16. Rg5 {[%clk 0:02:12.3]} 16... g6
{[%clk 0:02:12.5]} 17. Ra5 {[%clk 0:02:12.6]} 17... Ra8 {[%clk 0:01:56.4]} 18.
Ra6 {[%clk 0:02:12.8]} 18... Kd7 {[%clk 0:01:54.1]} 19. c4 {[%clk 0:02:07]}
19... Rhb8 {[%clk 0:01:52.8]} 20. Kc3 {[%clk 0:02:05.5]} 20... Nf4 {[%clk
0:01:51.4]} 21. Re1 {[%clk 0:02:01.1]} 21... Rb6 {[%clk 0:01:49.2]} 22. Ra5
{[%clk 0:02:01.4]} 22... Ke7 {[%clk 0:01:45]} 23. Ng3 {[%clk 0:01:55.7]} 23...
f5 {[%clk 0:01:37.9]} 24. h4 {[%clk 0:01:47.9]} 24... Kf6 {[%clk 0:01:36.7]} 25.
Ne2 {[%clk 0:01:42.5]} 25... Nh5 {[%clk 0:01:27]} 26. Nc1 {[%clk 0:01:42.4]}
26... Nf4 {[%clk 0:01:26.2]} 27. Nd3 {[%clk 0:01:42.1]} 27... Nxd3 {[%clk
0:01:24]} 28. Kxd3 {[%clk 0:01:43]} 28... Rbb8 {[%clk 0:01:21.5]} 29. Rc5 {[%clk
0:01:42]} 29... Rb6 {[%clk 0:01:20.9]} 30. Ra5 {[%clk 0:01:39.3]} 30... Rbb8
{[%clk 0:01:20.5]} 31. Kc3 {[%clk 0:01:39.7]} 31... h6 {[%clk 0:01:06]} 32. Rae5
{[%clk 0:01:37.2]} 32... Re8 {[%clk 0:01:04.6]} 33. Rc5 {[%clk 0:01:37.8]} 33...
Ke7 {[%clk 0:01:01.3]} 34. Rxc6 {[%clk 0:01:31.1]} 34... Kd7 {[%clk 0:01:01.8]}
35. Ra6 {[%clk 0:01:28]} 35... g5 {[%clk 0:01:01.1]} 36. hxg5 {[%clk 0:01:27.3]}
36... hxg5 {[%clk 0:01:01]} 37. Kd3 {[%clk 0:01:24.1]} 37... c6 {[%clk
0:01:00.5]} 38. Rh1 {[%clk 0:01:21.9]} 38... Re7 {[%clk 0:00:54.4]} 39. Rh6
{[%clk 0:01:22.1]} 39... Kc7 {[%clk 0:00:54]} 40. Rg6 {[%clk 0:01:20.8]} 40...
Kb7 {[%clk 0:00:54]} 41. Ra5 {[%clk 0:01:21.2]} 41... Rh8 {[%clk 0:00:50.3]} 42.
Rxg5 {[%clk 0:01:17.1]} 42... Rh2 {[%clk 0:00:48.6]} 43. Ke2 {[%clk 0:01:16.4]}
43... Rd7 {[%clk 0:00:48.3]} 44. Ke3 {[%clk 0:01:07.3]} 44... Rh1 {[%clk
0:00:47.8]} 45. d5 {[%clk 0:00:56.5]} 45... cxd5 {[%clk 0:00:44.2]} 46. cxd5
{[%clk 0:00:56.9]} 46... Re1+ {[%clk 0:00:41.4]} 47. Kf4 {[%clk 0:00:51.8]}
47... Kb6 {[%clk 0:00:33.1]} 48. b4 {[%clk 0:00:51.3]} 48... exd5 {[%clk
0:00:28.9]} 49. Rxf5 {[%clk 0:00:45.5]} 49... Rd1 {[%clk 0:00:27.1]} 50. Kg5
{[%clk 0:00:26.4]} 50... Rd2 {[%clk 0:00:22.4]} 51. a4 {[%clk 0:00:25]} 51...
Rxf2 {[%clk 0:00:22]} 52. Kf6 {[%clk 0:00:20.7]} 52... a6 {[%clk 0:00:18]} 53.
Ke6 {[%clk 0:00:19.7]} 53... Rd8 {[%clk 0:00:18.5]} 54. Raxd5 {[%clk 0:00:18.4]}
54... Re8+ {[%clk 0:00:18.9]} 55. Kd7 {[%clk 0:00:18.1]} 55... Rfe2 {[%clk
0:00:17.3]} 56. Rf7 {[%clk 0:00:16.9]} 56... Kb7 {[%clk 0:00:13.1]} 57. f4
{[%clk 0:00:15.2]} 57... R8e4 {[%clk 0:00:11.8]} 58. Kd6+ {[%clk 0:00:11.9]}
58... Kb8 {[%clk 0:00:11.1]} 59. Rh5 {[%clk 0:00:09.7]} 59... Rd2+ {[%clk
0:00:10.8]} 60. Kc5 {[%clk 0:00:09.4]} 60... Rc2+ {[%clk 0:00:08.4]} 61. Kd5
{[%clk 0:00:09.7]} 61... Rxb4 {[%clk 0:00:08.5]} 62. Rh8+ {[%clk 0:00:08.3]}
62... Rc8 {[%clk 0:00:08.2]} 63. Rxc8+ {[%clk 0:00:08.9]} 63... Kxc8 {[%clk
0:00:08.8]} 64. f5 {[%clk 0:00:09.8]} 64... Rxa4 {[%clk 0:00:08.7]} 65. f6
{[%clk 0:00:10.4]} 65... Kd8 {[%clk 0:00:08.8]} 66. Rf8+ {[%clk 0:00:03.8]}
66... Kd7 {[%clk 0:00:08.9]} 67. Rf7+ {[%clk 0:00:04.3]} 67... Ke8 {[%clk
0:00:08.2]} 68. Ra7 {[%clk 0:00:04.6]} 68... Kf8 {[%clk 0:00:07.3]} 69. Ke5
{[%clk 0:00:04.7]} 69... Ra1 {[%clk 0:00:06.8]} 70. Ra8+ {[%clk 0:00:05.4]}
70... Kf7 {[%clk 0:00:06.8]} 71. Ra7+ {[%clk 0:00:06.3]} 71... Kf8 {[%clk
0:00:07.3]} 72. Ke6 {[%clk 0:00:07.2]} 72... Re1+ {[%clk 0:00:07]} 73. Kf5
{[%clk 0:00:08.1]} 73... Rf1+ {[%clk 0:00:07.3]} 74. Kg6 {[%clk 0:00:09]} 74...
Rg1+ {[%clk 0:00:07.8]} 75. Kh6 {[%clk 0:00:05.8]} 75... Rh1+ {[%clk 0:00:07.7]}
76. Kg5 {[%clk 0:00:06]} 76... Rg1+ {[%clk 0:00:08.3]} 77. Kh5 {[%clk
0:00:06.7]} 77... Rh1+ {[%clk 0:00:08.6]} 78. Kg4 {[%clk 0:00:07.4]} 78... Rg1+
{[%clk 0:00:09]} 79. Kh4 {[%clk 0:00:08.2]} 79... Rf1 {[%clk 0:00:09.1]} 80.
Rxa6 {[%clk 0:00:08.5]} 80... Kf7 {[%clk 0:00:08]} 81. Kg5 {[%clk 0:00:09.2]}
81... Rg1+ {[%clk 0:00:08.4]} 82. Kh5 {[%clk 0:00:09.6]} 82... Rh1+ {[%clk
0:00:08.1]} 83. Kg5 {[%clk 0:00:10.3]} 83... Rg1+ {[%clk 0:00:08.6]} 84. Kh4
{[%clk 0:00:11.2]} 84... Rh1+ {[%clk 0:00:08.9]} 85. Kg4 {[%clk 0:00:11.7]}
85... Rg1+ {[%clk 0:00:09.2]} 86. Kf4 {[%clk 0:00:12.4]} 86... Rf1+ {[%clk
0:00:09.6]} 87. Ke5 {[%clk 0:00:13.2]} 87... Re1+ {[%clk 0:00:10.2]} 88. Kd4
{[%clk 0:00:13.9]} 88... Rd1+ {[%clk 0:00:10.4]} 89. Ke4 {[%clk 0:00:13.9]}
89... Re1+ {[%clk 0:00:10.7]} 90. Kd3 {[%clk 0:00:14.3]} 90... Re6 {[%clk
0:00:10.1]} 91. Ra8 {[%clk 0:00:15.1]} 91... Kxf6 {[%clk 0:00:10.3]} 92. Kd4
{[%clk 0:00:15.6]} 92... Rd6+ {[%clk 0:00:10.5]} 93. Kc5 {[%clk 0:00:16.1]}
93... Re6 {[%clk 0:00:11]} 94. Rf8+ {[%clk 0:00:16.5]} 94... Ke7 {[%clk
0:00:11.2]} 95. Rf1 {[%clk 0:00:17.4]} 95... Rf6 {[%clk 0:00:11.5]} 96. Re1+
{[%clk 0:00:18]} 96... Kf7 {[%clk 0:00:12.1]} 97. Rh1 {[%clk 0:00:18.9]} 97...
Rf5+ {[%clk 0:00:12.5]} 98. Kd6 {[%clk 0:00:19.1]} 98... Rf6+ {[%clk 0:00:12.7]}
99. Ke5 {[%clk 0:00:20]} 99... Re6+ {[%clk 0:00:12.9]} 100. Kd5 {[%clk
0:00:20.9]} 100... Rf6 {[%clk 0:00:13.3]} 101. Ra1 {[%clk 0:00:21.6]} 101...
Rf5+ {[%clk 0:00:13.5]} 102. Ke4 {[%clk 0:00:22.5]} 102... Rf6 {[%clk
0:00:13.9]} 103. Ke5 {[%clk 0:00:23.4]} 103... Re6+ {[%clk 0:00:14.1]} 104. Kf5
{[%clk 0:00:24.3]} 104... Rf6+ {[%clk 0:00:14.6]} 105. Kg5 {[%clk 0:00:25.2]}
105... Rg6+ {[%clk 0:00:15.1]} 106. Kh5 {[%clk 0:00:26.1]} 106... Re6 {[%clk
0:00:15.2]} 107. Ra7+ {[%clk 0:00:26.6]} 107... Kf6 {[%clk 0:00:15.6]} 108. Ra2
{[%clk 0:00:27.5]} 108... Re4 {[%clk 0:00:15.7]} 109. Ra6+ {[%clk 0:00:27.1]}
109... Kf5 {[%clk 0:00:15.8]} 110. Ra5+ {[%clk 0:00:27.7]} 110... Re5 {[%clk
0:00:16.3]} 111. Ra1 {[%clk 0:00:28.2]} 111... Kf4+ {[%clk 0:00:16.8]} 112. Kg6
{[%clk 0:00:28.7]} 112... Re6+ {[%clk 0:00:17.1]} 113. Kf7 {[%clk 0:00:11.4]}
113... Re3 {[%clk 0:00:16.9]} 114. Rf1+ {[%clk 0:00:11.8]} 114... Ke4 {[%clk
0:00:17.4]} 115. Rh1 {[%clk 0:00:12.7]} 115... Rf3+ {[%clk 0:00:17.8]} 116. Ke6
{[%clk 0:00:13.2]} 116... Re3 {[%clk 0:00:18.2]} 117. Kd6 {[%clk 0:00:12.7]}
117... Kd4 {[%clk 0:00:18.5]} 118. Rd1+ {[%clk 0:00:12.5]} 118... Kc4 {[%clk
0:00:18.8]} 119. Rg1 {[%clk 0:00:13.4]} 119... Rd3+ {[%clk 0:00:19.1]} 120. Ke5
{[%clk 0:00:14.1]} 120... Re3+ {[%clk 0:00:19.5]} 121. Kf4 {[%clk 0:00:14.8]}
121... Re8 {[%clk 0:00:19.7]} 122. Kf5 {[%clk 0:00:14.6]} 122... Kd5 {[%clk
0:00:19.9]} 123. Kf6 {[%clk 0:00:15]} 123... Re6+ {[%clk 0:00:19.1]} 124. Kf7
{[%clk 0:00:15.5]} 124... Re4 {[%clk 0:00:19.1]} 125. Rg5+ {[%clk 0:00:15.9]}
125... Kd6 {[%clk 0:00:19.4]} 126. Rg2 {[%clk 0:00:16.8]} 126... Rf4+ {[%clk
0:00:19.7]} 127. Ke8 {[%clk 0:00:17.5]} 127... Ke6 {[%clk 0:00:19.4]} 128. Rg6+
{[%clk 0:00:17.2]} 128... Kf5 {[%clk 0:00:19.6]} 129. Ra6 {[%clk 0:00:17.1]}
129... Re4+ {[%clk 0:00:20]} 130. Kf7 {[%clk 0:00:17.6]} 130... Rb4 {[%clk
0:00:20.1]} 131. Ra5+ {[%clk 0:00:17.9]} 131... Ke4 {[%clk 0:00:20.5]} 132. Ra1
{[%clk 0:00:18.8]} 132... Rb7+ {[%clk 0:00:20.5]} 133. Ke6 {[%clk 0:00:19.1]}
133... Rb6+ {[%clk 0:00:21.1]} 134. Kd7 {[%clk 0:00:03.5]} 134... Rb4 {[%clk
0:00:20.3]} 135. Kc6 {[%clk 0:00:04]} 135... Rd4 {[%clk 0:00:20.3]} 136. Kc5
{[%clk 0:00:04.6]} 136... Rd5+ {[%clk 0:00:20.4]} 137. Kc4 {[%clk 0:00:05.3]}
137... Rd4+ {[%clk 0:00:21]} 138. Kc3 {[%clk 0:00:06.1]} 138... Rd3+ {[%clk
0:00:21.3]} 139. Kc2 {[%clk 0:00:06.8]} 139... Re3 {[%clk 0:00:21.8]} 140. Ra4+
{[%clk 0:00:07]} 140... Kf3 {[%clk 0:00:22.1]} 141. Ra8 {[%clk 0:00:07.9]}
141... Re2+ {[%clk 0:00:22.5]} 1/2-1/2

[Event "Late-Titled-Tuesday-Blitz-February-06-2024"]
[Site "Chess.com"]
[Date "2024.02.06"]
[Round "6"]
[White "FairChess_on_YouTube"]
[Black "maciek_92"]
[Result "1-0"]
[WhiteElo "3055"]
[BlackElo "2821"]
[TimeControl "180+1"]
[EndTime "15:02:24 PST"]
[Termination "FairChess_on_YouTube won by resignation"]

1. e4 {[%clk 0:03:00.9]} 1... c5 {[%clk 0:03:00.3]} 2. Nc3 {[%clk 0:03:00]} 2...
Nc6 {[%clk 0:03:00.2]} 3. Bb5 {[%clk 0:02:58.4]} 3... Nd4 {[%clk 0:03:00.6]} 4.
Nf3 {[%clk 0:02:57.7]} 4... e6 {[%clk 0:03:01.3]} 5. O-O {[%clk 0:02:57]} 5...
a6 {[%clk 0:03:02.1]} 6. Bd3 {[%clk 0:02:56.2]} 6... Nc6 {[%clk 0:03:02.8]} 7.
Nd5 {[%clk 0:02:55.3]} 7... Bd6 {[%clk 0:03:00.9]} 8. Ne3 {[%clk 0:02:52.3]}
8... Nge7 {[%clk 0:02:58.3]} 9. c3 {[%clk 0:02:52.4]} 9... Bc7 {[%clk
0:02:56.2]} 10. Bc2 {[%clk 0:02:52.5]} 10... d5 {[%clk 0:02:57]} 11. exd5 {[%clk
0:02:49.2]} 11... Nxd5 {[%clk 0:02:57.9]} 12. d4 {[%clk 0:02:49.3]} 12... cxd4
{[%clk 0:02:30.4]} 13. Nxd4 {[%clk 0:02:50.2]} 13... O-O {[%clk 0:02:30.8]} 14.
Nxc6 {[%clk 0:02:47.4]} 14... bxc6 {[%clk 0:02:31.7]} 15. Qf3 {[%clk 0:02:27.7]}
15... Qf6 {[%clk 0:02:16.2]} 16. Qe4 {[%clk 0:02:21.3]} 16... Qg6 {[%clk
0:01:58.4]} 17. Qxg6 {[%clk 0:02:20.6]} 17... hxg6 {[%clk 0:01:58.7]} 18. c4
{[%clk 0:02:20.7]} 18... Nb4 {[%clk 0:01:48]} 19. Be4 {[%clk 0:02:14.8]} 19...
f5 {[%clk 0:01:48.1]} 20. Bf3 {[%clk 0:02:11.9]} 20... Bd7 {[%clk 0:01:43.7]}
21. Rd1 {[%clk 0:02:07.8]} 21... Be8 {[%clk 0:01:43]} 22. a3 {[%clk 0:02:07.1]}
22... Nc2 {[%clk 0:01:43.1]} 23. Nxc2 {[%clk 0:02:06.4]} 1-0

[Event "Late-Titled-Tuesday-Blitz-February-06-2024"]
[Site "Chess.com"]
[Date "2024.02.06"]
[Round "6"]
[White "N_Mullodzhanov"]
[Black "JM2005GM"]
[Result "1-0"]
[WhiteElo "2484"]
[BlackElo "2622"]
[TimeControl "180+1"]
[EndTime "15:02:25 PST"]
[Termination "N_Mullodzhanov won by resignation"]

1. e4 {[%clk 0:03:00.9]} 1... c5 {[%clk 0:02:59.7]} 2. c3 {[%clk 0:03:00.8]}
2... Nf6 {[%clk 0:02:59.2]} 3. e5 {[%clk 0:03:00.9]} 3... Nd5 {[%clk 0:02:59.5]}
4. Nf3 {[%clk 0:03:01.5]} 4... Nc6 {[%clk 0:02:59.2]} 5. Bc4 {[%clk 0:03:01.4]}
5... Nb6 {[%clk 0:02:59.1]} 6. Bb3 {[%clk 0:03:01.8]} 6... c4 {[%clk 0:02:58.3]}
7. Bc2 {[%clk 0:03:02.1]} 7... d5 {[%clk 0:02:57.8]} 8. exd6 {[%clk 0:03:01.9]}
8... Qxd6 {[%clk 0:02:57.6]} 9. O-O {[%clk 0:03:02.5]} 9... Bg4 {[%clk
0:02:56.8]} 10. Re1 {[%clk 0:02:54.8]} 10... e6 {[%clk 0:02:51.4]} 11. Na3
{[%clk 0:02:53.8]} 11... a6 {[%clk 0:02:32]} 12. b3 {[%clk 0:02:52.6]} 12... Rc8
{[%clk 0:02:27.8]} 13. Nxc4 {[%clk 0:02:43.2]} 13... Nxc4 {[%clk 0:02:27.5]} 14.
bxc4 {[%clk 0:02:44.1]} 14... Be7 {[%clk 0:02:25.8]} 15. d4 {[%clk 0:02:42.4]}
15... O-O {[%clk 0:02:24.7]} 16. a4 {[%clk 0:02:34.1]} 16... b6 {[%clk
0:02:19.1]} 17. h3 {[%clk 0:02:32.1]} 17... Bh5 {[%clk 0:02:18]} 18. Ba3 {[%clk
0:02:26.1]} 18... Qf4 {[%clk 0:02:17.1]} 19. Bxe7 {[%clk 0:02:22]} 19... Nxe7
{[%clk 0:02:18]} 20. Qd2 {[%clk 0:02:21.9]} 20... Qf6 {[%clk 0:02:05.6]} 21. Ne5
{[%clk 0:02:18.8]} 21... Rfd8 {[%clk 0:02:00.5]} 22. g4 {[%clk 0:02:17.2]} 22...
Bg6 {[%clk 0:02:00]} 23. g5 {[%clk 0:02:17.4]} 1-0

[Event "Late-Titled-Tuesday-Blitz-February-06-2024"]
[Site "Chess.com"]
[Date "2024.02.06"]
[Round "6"]
[White "ArtemDyachuk"]
[Black "pr1105"]
[Result "0-1"]
[WhiteElo "2609"]
[BlackElo "2427"]
[TimeControl "180+1"]
[EndTime "15:02:40 PST"]
[Termination "pr1105 won by checkmate"]

1. Nf3 {[%clk 0:03:00.9]} 1... d5 {[%clk 0:02:59.8]} 2. e3 {[%clk 0:03:00.6]}
2... Nf6 {[%clk 0:02:55.6]} 3. b3 {[%clk 0:03:00.2]} 3... Bf5 {[%clk 0:02:54.7]}
4. Bb2 {[%clk 0:03:01.1]} 4... h6 {[%clk 0:02:52.3]} 5. Be2 {[%clk 0:02:58.4]}
5... e6 {[%clk 0:02:52.7]} 6. O-O {[%clk 0:02:58.9]} 6... c6 {[%clk 0:02:46.6]}
7. c4 {[%clk 0:02:55.6]} 7... Nbd7 {[%clk 0:02:44.2]} 8. Nc3 {[%clk 0:02:54.8]}
8... Bd6 {[%clk 0:02:41.4]} 9. cxd5 {[%clk 0:02:51]} 9... exd5 {[%clk
0:02:42.3]} 10. d3 {[%clk 0:02:51.5]} 10... O-O {[%clk 0:02:41]} 11. Re1 {[%clk
0:02:52.4]} 11... Re8 {[%clk 0:02:40.7]} 12. Bf1 {[%clk 0:02:53.3]} 12... Bg4
{[%clk 0:02:33.6]} 13. h3 {[%clk 0:02:52.8]} 13... Bh5 {[%clk 0:02:33.9]} 14.
Kh1 {[%clk 0:02:50.7]} 14... Ne5 {[%clk 0:02:31.7]} 15. Be2 {[%clk 0:02:49.5]}
15... Bxf3 {[%clk 0:02:25.4]} 16. Bxf3 {[%clk 0:02:50.4]} 16... Qe7 {[%clk
0:02:17.4]} 17. Be2 {[%clk 0:02:45.6]} 17... Rad8 {[%clk 0:02:16.6]} 18. d4
{[%clk 0:02:44.7]} 18... Ng6 {[%clk 0:02:14.9]} 19. Bd3 {[%clk 0:02:45.1]} 19...
Ne4 {[%clk 0:02:12.5]} 20. Bxe4 {[%clk 0:02:43.9]} 20... dxe4 {[%clk 0:02:13.4]}
21. Qc2 {[%clk 0:02:42]} 21... f5 {[%clk 0:02:12.1]} 22. Rad1 {[%clk 0:02:41.2]}
22... Nh4 {[%clk 0:02:08.7]} 23. g4 {[%clk 0:02:30]} 23... Nf3 {[%clk
0:02:03.2]} 24. gxf5 {[%clk 0:02:08.1]} 24... Qh4 {[%clk 0:02:02.8]} 25. Kg2
{[%clk 0:02:07.1]} 25... Qg5+ {[%clk 0:01:46.7]} 26. Kf1 {[%clk 0:02:06.5]}
26... Qxf5 {[%clk 0:01:45.5]} 27. Re2 {[%clk 0:01:57.3]} 27... Qxh3# {[%clk
0:01:44.2]} 0-1

[Event "Late-Titled-Tuesday-Blitz-February-06-2024"]
[Site "Chess.com"]
[Date "2024.02.06"]
[Round "6"]
[White "ChessSwole"]
[Black "ritanovikova"]
[Result "1-0"]
[WhiteElo "2662"]
[BlackElo "2227"]
[TimeControl "180+1"]
[EndTime "15:02:48 PST"]
[Termination "ChessSwole won by resignation"]

1. e4 {[%clk 0:03:00.9]} 1... d5 {[%clk 0:02:58.5]} 2. exd5 {[%clk 0:03:01]}
2... Qxd5 {[%clk 0:02:57.8]} 3. Nc3 {[%clk 0:03:01.2]} 3... Qd6 {[%clk
0:02:57.9]} 4. d4 {[%clk 0:03:01.2]} 4... Nf6 {[%clk 0:02:58.1]} 5. Nf3 {[%clk
0:03:00.4]} 5... c6 {[%clk 0:02:55.1]} 6. Ne5 {[%clk 0:02:54.1]} 6... Nbd7
{[%clk 0:02:54.6]} 7. Nc4 {[%clk 0:02:54.1]} 7... Qc7 {[%clk 0:02:54.5]} 8. Qf3
{[%clk 0:02:49.2]} 8... Nb6 {[%clk 0:02:53.4]} 9. Bf4 {[%clk 0:02:44.7]} 9...
Qd8 {[%clk 0:02:51.7]} 10. h3 {[%clk 0:02:38.2]} 10... Qxd4 {[%clk 0:02:31.1]}
11. Be3 {[%clk 0:02:27.7]} 11... Qd7 {[%clk 0:02:24.3]} 12. Bxb6 {[%clk
0:02:25.9]} 12... Qe6+ {[%clk 0:02:16.5]} 13. Be3 {[%clk 0:02:24.8]} 13... Nd5
{[%clk 0:02:10.6]} 14. Be2 {[%clk 0:01:59.1]} 14... Nxc3 {[%clk 0:01:58]} 15.
bxc3 {[%clk 0:02:00]} 15... g6 {[%clk 0:01:55.4]} 16. Bd4 {[%clk 0:01:59.1]}
16... f6 {[%clk 0:01:54.5]} 17. O-O {[%clk 0:01:57.2]} 17... Bg7 {[%clk
0:01:53.7]} 18. Rfe1 {[%clk 0:01:55.4]} 18... Qf7 {[%clk 0:01:53.3]} 19. Nd6+
{[%clk 0:01:50.2]} 19... exd6 {[%clk 0:01:47.1]} 20. Bc4+ {[%clk 0:01:50.8]}
20... Qe7 {[%clk 0:01:45.5]} 21. Rxe7+ {[%clk 0:01:51.1]} 21... Kxe7 {[%clk
0:01:46.4]} 22. Re1+ {[%clk 0:01:49.8]} 22... Kd8 {[%clk 0:01:45.7]} 23. Bxf6+
{[%clk 0:01:48.5]} 1-0

[Event "Late-Titled-Tuesday-Blitz-February-06-2024"]
[Site "Chess.com"]
[Date "2024.02.06"]
[Round "6"]
[White "temiksmozg"]
[Black "NovakRatko"]
[Result "1-0"]
[WhiteElo "2609"]
[BlackElo "2394"]
[TimeControl "180+1"]
[EndTime "15:03:02 PST"]
[Termination "temiksmozg won by resignation"]

1. e4 {[%clk 0:03:00.9]} 1... d5 {[%clk 0:02:44.9]} 2. exd5 {[%clk 0:02:58.8]}
2... c6 {[%clk 0:02:44.8]} 3. dxc6 {[%clk 0:02:58.6]} 3... Nxc6 {[%clk
0:02:45.7]} 4. d4 {[%clk 0:02:57.2]} 4... Qxd4 {[%clk 0:02:45.3]} 5. Bd3 {[%clk
0:02:55.4]} 5... Qe5+ {[%clk 0:02:39.3]} 6. Qe2 {[%clk 0:02:54.3]} 6... e6
{[%clk 0:02:37.9]} 7. Nc3 {[%clk 0:02:50.3]} 7... Bb4 {[%clk 0:02:37.1]} 8. Bd2
{[%clk 0:02:49.9]} 8... Nf6 {[%clk 0:02:37.1]} 9. Nf3 {[%clk 0:02:48.1]} 9...
Qxe2+ {[%clk 0:02:36.7]} 10. Nxe2 {[%clk 0:02:46.6]} 10... O-O {[%clk
0:02:35.5]} 11. c3 {[%clk 0:02:43.5]} 11... Bc5 {[%clk 0:02:33.8]} 12. Bg5
{[%clk 0:02:43.1]} 12... e5 {[%clk 0:02:28.6]} 13. Bxf6 {[%clk 0:02:33]} 13...
gxf6 {[%clk 0:02:28.4]} 14. Be4 {[%clk 0:02:32.3]} 14... Be6 {[%clk 0:02:17.1]}
15. O-O {[%clk 0:02:18.4]} 15... a5 {[%clk 0:02:16]} 16. Rfe1 {[%clk 0:02:17.8]}
16... Rad8 {[%clk 0:02:11.1]} 17. Ng3 {[%clk 0:02:17.1]} 17... Ne7 {[%clk
0:02:04.4]} 18. Nh4 {[%clk 0:02:11.4]} 18... Rd2 {[%clk 0:01:59.1]} 19. Re2
{[%clk 0:02:10.8]} 19... Rfd8 {[%clk 0:01:59.1]} 20. Rae1 {[%clk 0:02:09.9]}
20... Rd1 {[%clk 0:01:55.8]} 21. b3 {[%clk 0:02:04.3]} 21... Rxe1+ {[%clk
0:01:50.1]} 22. Rxe1 {[%clk 0:02:05.2]} 22... Rd2 {[%clk 0:01:50.5]} 23. Re2
{[%clk 0:02:05.2]} 23... Rd1+ {[%clk 0:01:50.3]} 24. Nf1 {[%clk 0:02:04.8]}
24... b6 {[%clk 0:01:33.3]} 25. Nf3 {[%clk 0:02:01.4]} 25... a4 {[%clk
0:01:32.4]} 26. c4 {[%clk 0:02:00.6]} 26... axb3 {[%clk 0:01:32.1]} 27. axb3
{[%clk 0:02:01.5]} 27... Rb1 {[%clk 0:01:32.8]} 28. Bxb1 {[%clk 0:02:00.8]} 1-0

[Event "Late-Titled-Tuesday-Blitz-February-06-2024"]
[Site "Chess.com"]
[Date "2024.02.06"]
[Round "6"]
[White "DraningWaterHi"]
[Black "kuli4ik"]
[Result "0-1"]
[WhiteElo "2224"]
[BlackElo "2862"]
[TimeControl "180+1"]
[EndTime "15:03:08 PST"]
[Termination "kuli4ik won by checkmate"]

1. d4 {[%clk 0:03:00.9]} 1... g6 {[%clk 0:02:57.5]} 2. e4 {[%clk 0:02:59.6]}
2... Bg7 {[%clk 0:02:57.8]} 3. c4 {[%clk 0:02:47.1]} 3... d6 {[%clk 0:02:55.9]}
4. Be3 {[%clk 0:02:46.5]} 4... c5 {[%clk 0:02:47.2]} 5. Nc3 {[%clk 0:02:46.2]}
5... cxd4 {[%clk 0:02:47.1]} 6. Bxd4 {[%clk 0:02:47]} 6... Nf6 {[%clk
0:02:47.1]} 7. f3 {[%clk 0:02:44.2]} 7... Nc6 {[%clk 0:02:46.8]} 8. Be3 {[%clk
0:02:44.2]} 8... O-O {[%clk 0:02:46.8]} 9. Bd3 {[%clk 0:02:44.1]} 9... e6 {[%clk
0:02:46.3]} 10. Nge2 {[%clk 0:02:43.6]} 10... d5 {[%clk 0:02:46.4]} 11. cxd5
{[%clk 0:02:42.5]} 11... exd5 {[%clk 0:02:46.7]} 12. exd5 {[%clk 0:02:42.9]}
12... Nxd5 {[%clk 0:02:46.4]} 13. Nxd5 {[%clk 0:02:43.4]} 13... Qxd5 {[%clk
0:02:46.1]} 14. Rb1 {[%clk 0:02:24.8]} 14... Rd8 {[%clk 0:02:42.3]} 15. Be4
{[%clk 0:02:14]} 15... Qa5+ {[%clk 0:02:12.7]} 16. Bd2 {[%clk 0:02:12.7]} 16...
Qb6 {[%clk 0:02:10]} 17. Qc2 {[%clk 0:02:09.2]} 17... Be6 {[%clk 0:02:07.6]} 18.
Bxc6 {[%clk 0:02:02.2]} 18... bxc6 {[%clk 0:02:03.1]} 19. b3 {[%clk 0:02:01.7]}
19... Bf5 {[%clk 0:02:02.2]} 20. Qc1 {[%clk 0:01:59.2]} 20... Bxb1 {[%clk
0:02:00.7]} 21. Qxb1 {[%clk 0:02:00.1]} 21... Rd5 {[%clk 0:01:52.9]} 22. Qc1
{[%clk 0:01:58]} 22... Re8 {[%clk 0:01:49.9]} 23. Qc4 {[%clk 0:01:51.8]} 23...
Rde5 {[%clk 0:01:48.2]} 24. Kd1 {[%clk 0:01:49.2]} 24... Rxe2 {[%clk 0:01:47.1]}
25. Qxe2 {[%clk 0:01:48.8]} 25... Rxe2 {[%clk 0:01:47]} 26. Kxe2 {[%clk
0:01:49.7]} 26... Qa6+ {[%clk 0:01:47.2]} 27. Ke3 {[%clk 0:01:49.2]} 27... Bh6+
{[%clk 0:01:46.4]} 28. Ke4 {[%clk 0:01:48.1]} 28... Bxd2 {[%clk 0:01:46]} 29.
Ra1 {[%clk 0:01:46.8]} 29... Qe2+ {[%clk 0:01:45.5]} 30. Kd4 {[%clk 0:01:47.3]}
30... Bf4 {[%clk 0:01:43.9]} 31. Kc5 {[%clk 0:01:46.8]} 31... Qe5+ {[%clk
0:01:43]} 32. Kxc6 {[%clk 0:01:46.6]} 32... Qxa1 {[%clk 0:01:43.9]} 33. Kb7
{[%clk 0:01:46.9]} 33... Qxa2 {[%clk 0:01:43.9]} 34. Ka8 {[%clk 0:01:47.8]}
34... Qxb3 {[%clk 0:01:43.4]} 35. g4 {[%clk 0:01:48.7]} 35... Qb8# {[%clk
0:01:43.1]} 0-1